bitfinex-derivatives/quotes_SOLF0:USTF0_20260220
["timestamp","ask_amount","ask_price","bid_price","bid_amount"]
[1771608340719,25.14976421,82.954,82.888,24.36319959]
[1771608340916,25.14976421,82.951,82.892,10.8606]
[1771608341618,25.14976421,82.951,82.826,169.0791]
[1771608341619,25.14976421,82.916,82.861,24.36319959]
[1771608342309,25.14976421,82.916,82.862,10.8646]
[1771608342913,36.19,82.959,82.861,24.36319959]
[1771608342914,25.14976421,82.939,82.871,10.8634]
[1771608343822,10.8554,82.933,82.871,10.8634]
[1771608344220,10.856,82.929,82.871,10.8634]
[1771608344717,25.14976421,82.932,82.879,10.8623]
[1771608345222,25.14976421,82.932,82.861,24.36319959]
[1771608345223,25.14976421,82.93,82.861,24.36319959]
[1771608345921,10.8571,82.92,82.862,10.8646]
[1771608346117,25.14976421,82.93,82.861,24.36319959]
[1771608347519,25.14976421,82.936,82.861,24.36319959]
[1771608348019,25.14976421,82.919,82.862,10.8646]
[1771608348320,25.14976421,82.919,82.831,24.36319959]
[1771608348531,36.00916421,82.903,82.831,24.36319959]
[1771608348819,25.14976421,82.902,82.831,24.36319959]
[1771608349024,9.9812248,82.92,82.831,24.36319959]
[1771608349025,25.14976421,82.899,82.831,24.36319959]
[1771608349213,9.9812248,82.9,82.831,24.36319959]
[1771608349214,25.14976421,82.891,82.831,24.36319959]
[1771608350821,10.8613,82.888,82.832,10.8685]
[1771608351324,36.01106421,82.888,82.832,10.8685]
[1771608352116,25.14976421,82.88,82.822,10.8698]
[1771608352323,25.14976421,82.88,82.822,35.23299959]
[1771608352624,25.14976421,82.909,82.831,24.36319959]
[1771608352820,25.14976421,82.909,82.859,10.865]
[1771608355519,25.14976421,82.909,82.867,10.864]
[1771608355930,14.42320823,83.015,82.851,24.36319959]
[1771608355931,25.14976421,82.928,82.851,24.36319959]
[1771608356221,25.14976421,82.928,82.85,9.9812248]
[1771608356222,10.8562,82.927,82.875,24.36319959]
[1771608357228,7.22514049,82.958,82.889,10.861]
[1771608357229,10.8549,82.937,82.889,10.861]
[1771608358320,25.14976421,82.948,82.87,9.9812248]
[1771608358321,25.14976421,82.967,82.897,24.36319959]
[1771608359624,36.00066421,82.967,82.919,10.857]
[1771608359924,25.14976421,82.984,82.897,24.36319959]
[1771608360130,25.14976421,82.963,82.897,24.36319959]
[1771608360330,25.14976421,82.959,82.897,24.36319959]
[1771608361628,10.8544,82.941,82.899,10.8597]
[1771608362025,25.14976421,82.959,82.899,10.8597]
[1771608362330,25.14976421,82.941,82.871,24.36319959]
[1771608362931,10.8544,82.94,82.895,10.8602]
[1771608363128,9.9812248,82.96,82.871,24.36319959]
[1771608363332,25.14976421,82.959,82.891,24.36319959]
[1771608363934,21.6903,83.012,82.87,9.9812248]
[1771608363935,25.14976421,82.979,82.911,24.36319959]
[1771608364529,25.14976421,82.999,82.911,24.36319959]
[1771608365029,25.14976421,82.999,82.932,24.36319959]
[1771608365628,35.99656421,82.999,82.949,10.8532]
[1771608365830,25.14976421,83.019,82.951,24.36319959]
[1771608366228,25.14976421,83.039,82.971,24.36319959]
[1771608366732,9.16619709,83.112,82.94,168.8473]
[1771608366733,24.97557721,83.062,82.991,25.1723049]
[1771608367134,25.35947943,83.039,82.97,25.1723049]
[1771608367426,25.35947943,83.039,82.971,25.20501367]
[1771608368529,9.9812248,83.04,82.972,10.8501]
[1771608368530,25.35947943,83.037,82.972,10.8501]
[1771608368725,25.35947943,83.037,82.971,25.20501367]
[1771608369030,9.16912047,83.076,82.971,25.20501367]
[1771608369031,25.35947943,83.059,82.971,25.20501367]
[1771608369327,25.35947943,83.059,82.993,10.8474]
[1771608370227,25.35947943,83.059,83.003,10.8462]
[1771608370433,25.35947943,83.059,82.99,25.20501367]
[1771608371335,25.35947943,83.059,83.012,10.8449]
[1771608371733,25.35947943,83.059,82.99,35.18623847]
[1771608371734,25.35947943,83.059,82.991,25.20501367]
[1771608371936,25.35947943,83.059,83.002,10.8463]
[1771608373134,9.9812248,83.1,83.011,36.05001367]
[1771608373135,25.35947943,83.077,83.011,36.05001367]
[1771608373331,25.35947943,83.077,83.012,25.20501367]
[1771608374340,25.35947943,83.076,83.009,10.8453]
[1771608374835,25.35947943,83.072,82.999,25.20501367]
[1771608376032,25.35947943,83.069,83.008,10.8454]
[1771608376238,25.35947943,83.059,82.999,25.20501367]
[1771608376439,25.35947943,83.059,82.971,25.20501367]
[1771608376839,25.35947943,83.056,82.994,10.8473]
[1771608377343,25.35947943,83.051,82.994,10.8473]
[1771608378338,25.35947943,83.049,82.994,10.8473]
[1771608378543,25.35947943,83.049,82.982,10.8488]
[1771608378941,25.35947943,83.049,82.971,25.20501367]
[1771608379238,25.35947943,83.049,82.994,10.8473]
[1771608379746,25.35947943,83.049,82.994,36.05231367]
[1771608380353,25.35947943,83.049,82.984,10.8487]
[1771608380651,25.35947943,83.049,82.977,25.20501367]
[1771608380847,25.35947943,83.049,82.984,25.20501367]
[1771608381648,10.8404,83.048,82.993,10.8475]
[1771608381842,25.35947943,83.047,82.971,25.20501367]
[1771608382446,25.35947943,83.047,82.95,11.0]
[1771608382447,9.9812248,83.08,82.991,25.20501367]
[1771608382641,25.35947943,83.086,83.011,25.20501367]
[1771608383751,25.35947943,83.086,83.037,10.8417]
[1771608384148,25.35947943,83.104,83.046,10.8405]
[1771608385552,10.8336,83.1,83.046,10.8405]
[1771608386051,25.35947943,83.104,83.002,21.6925]
[1771608386052,25.35947943,83.104,83.041,25.20501367]
[1771608386257,25.35947943,83.123,83.041,25.20501367]
[1771608386454,25.35947943,83.14,83.081,25.20501367]
[1771608387058,25.35947943,83.157,83.1,10.8335]
[1771608388053,10.8264,83.155,83.1,10.8335]
[1771608388254,25.35947943,83.154,83.1,10.8335]
[1771608389658,2.09344085,83.193,83.1,10.8335]
[1771608389659,25.35947943,83.152,83.1,10.8335]
[1771608391052,25.35947943,83.152,83.081,25.20501367]
[1771608391957,25.35947943,83.152,83.097,10.8338]
[1771608393652,25.35947943,83.152,83.097,25.20501367]
[1771608393855,25.35947943,83.17,83.101,25.20501367]
[1771608394453,25.35947943,83.159,83.084,25.20501367]
[1771608394752,25.35947943,83.159,83.043,168.636]
[1771608394753,25.35947943,83.139,83.061,25.20501367]
[1771608394953,25.35947943,83.139,83.064,10.8381]
[1771608395360,25.35947943,83.139,83.007,168.711]
[1771608395361,25.35947943,83.139,83.016,25.20501367]
[1771608395663,25.35947943,83.077,83.016,25.20501367]
[1771608395871,25.35947943,83.069,82.981,25.20501367]
[1771608396053,10.8409,83.044,82.989,10.8479]
[1771608396363,25.35947943,83.049,82.981,25.20501367]
[1771608397163,10.8414,83.04,82.982,10.8488]
[1771608397556,10.8414,83.04,82.981,25.20501367]
[1771608397557,24.35188279,83.039,82.962,23.46762621]
[1771608397764,24.35188279,83.025,82.921,23.46762621]
[1771608398163,24.35188279,83.009,82.948,23.46762621]
[1771608398471,34.33310759,83.03,82.948,23.46762621]
[1771608398663,35.19468279,83.029,82.953,10.8526]
[1771608398860,24.35188279,83.028,82.954,23.46762621]
[1771608399265,24.35188279,83.028,82.958,10.852]
[1771608399667,24.35188279,83.028,82.959,23.46762621]
[1771608402570,24.35188279,83.028,82.961,23.46762621]
[1771608402760,9.9812248,83.04,82.961,23.46762621]
[1771608402761,24.35188279,83.039,82.961,23.46762621]
[1771608403269,24.35188279,83.027,82.961,23.46762621]
[1771608403471,24.35188279,83.045,82.961,23.46762621]
[1771608403667,24.35188279,83.045,82.964,23.46762621]
[1771608403864,24.35188279,83.045,82.97,9.94906667]
[1771608404160,10.8412,83.042,82.971,23.46762621]
[1771608405368,24.35188279,83.045,82.971,23.46762621]
[1771608405672,34.30094946,83.06,82.977,23.46762621]
[1771608405869,24.35188279,83.059,82.977,23.46762621]
[1771608406073,35.19088279,83.058,82.985,23.46762621]
[1771608406371,24.35188279,83.057,82.985,23.46762621]
[1771608406765,24.35188279,83.055,82.985,23.46762621]
[1771608407165,24.35188279,83.055,82.986,10.8484]
[1771608407365,24.35188279,83.055,82.987,23.46762621]
[1771608408572,24.35188279,83.082,83.0,23.46762621]
[1771608409768,9.94906667,83.09,83.01,34.31282621]
[1771608409769,24.35188279,83.077,83.01,34.31282621]
[1771608410171,24.35188279,83.077,83.021,10.8438]
[1771608410470,24.35188279,83.095,83.022,23.46762621]
[1771608410868,24.35188279,83.095,83.032,23.46762621]
[1771608411973,24.35188279,83.095,83.03,9.94906667]
[1771608411974,24.35188279,83.095,83.033,23.46762621]
[1771608412874,31.55416116,83.094,83.034,10.8421]
[1771608413076,7.20227837,83.093,83.034,10.8421]
[1771608413274,7.20227837,83.092,83.033,23.46762621]
[1771608413574,24.35188279,83.093,83.033,23.46762621]
[1771608413575,7.20227837,83.091,83.033,23.46762621]
[1771608413766,7.20227837,83.09,83.033,23.46762621]
[1771608413963,7.20227837,83.089,83.033,23.46762621]
[1771608414165,24.35188279,83.109,83.033,23.46762621]
[1771608415469,7.30449466,83.108,83.033,23.46762621]
[1771608415669,7.30449466,83.107,83.063,10.8382]
[1771608415864,24.35188279,83.109,83.063,10.8382]
[1771608416076,24.35188279,83.127,83.063,10.8382]
[1771608416274,31.65912373,83.126,83.071,10.8372]
[1771608416567,31.65912373,83.126,83.051,23.46762621]
[1771608416568,24.35188279,83.126,83.051,23.46762621]
[1771608416967,24.35188279,83.126,83.07,9.94906667]
[1771608417167,24.35188279,83.136,83.074,10.8368]
[1771608417367,24.35188279,83.136,83.05,20.94906667]
[1771608417368,24.35188279,83.129,83.051,23.46762621]
[1771608417575,24.35188279,83.127,83.051,23.46762621]
[1771608417776,24.35188279,83.125,83.051,23.46762621]
[1771608417972,24.35188279,83.123,83.051,23.46762621]
[1771608418178,9.94906667,83.13,83.051,23.46762621]
[1771608418179,24.35188279,83.12,83.051,23.46762621]
[1771608418871,24.35188279,83.118,83.051,23.46762621]
[1771608419075,24.35188279,83.116,83.051,23.46762621]
[1771608419275,7.30904624,83.115,83.051,23.46762621]
[1771608419473,7.30904624,83.114,83.051,23.46762621]
[1771608419672,9.94906667,83.15,83.051,23.46762621]
[1771608419673,7.3138212,83.129,83.051,23.46762621]
[1771608419872,24.35188279,83.134,83.051,23.46762621]
[1771608420079,31.66688387,83.133,83.051,23.46762621]
[1771608420380,7.31500108,83.132,83.051,23.46762621]
[1771608420579,24.35188279,83.133,83.069,23.46762621]
[1771608420781,24.35188279,83.13,83.051,23.46762621]
[1771608420984,24.35188279,83.128,83.051,23.46762621]
[1771608421276,24.35188279,83.126,83.051,23.46762621]
[1771608421581,24.35188279,83.12,83.061,10.8385]
[1771608421775,24.35188279,83.118,83.061,10.8385]
[1771608421977,24.35188279,83.116,83.061,10.8385]
[1771608422274,24.35188279,83.116,83.051,23.46762621]
[1771608422275,24.35188279,83.114,83.076,10.8366]
[1771608422477,9.94906667,83.15,83.051,23.46762621]
[1771608422478,24.35188279,83.129,83.051,23.46762621]
[1771608422875,24.35188279,83.146,83.071,23.46762621]
[1771608423170,24.35188279,83.146,83.095,10.8341]
[1771608423574,24.35188279,83.164,83.091,23.46762621]
[1771608424071,24.35188279,83.164,83.073,23.46762621]
[1771608424267,9.94906667,83.17,83.073,23.46762621]
[1771608424268,24.35188279,83.149,83.097,10.8339]
[1771608425074,24.35188279,83.147,83.087,10.8351]
[1771608425481,24.35188279,83.147,83.073,23.46762621]
[1771608426672,23.80527099,83.143,83.085,10.8354]
[1771608427072,23.80527099,83.143,83.085,33.97971375]
[1771608427270,23.80527099,83.143,83.031,168.6617]
[1771608427271,24.60150252,83.184,83.101,23.14431375]
[1771608427471,24.60150252,83.169,83.101,23.14431375]
[1771608427779,24.60150252,83.169,83.08,9.94906667]
[1771608427977,24.60150252,83.169,83.114,10.8316]
[1771608428381,24.60150252,83.169,83.081,23.14431375]
[1771608428676,9.94906667,83.17,83.081,23.14431375]
[1771608428677,24.60150252,83.151,83.1,10.8334]
[1771608430284,24.60150252,83.151,83.11,10.8321]
[1771608430480,24.60150252,83.151,83.081,23.14431375]
[1771608430983,24.60150252,83.151,83.11,10.8321]
[1771608431287,10.8254,83.163,83.11,10.8321]
[1771608431588,24.60150252,83.168,83.12,10.8308]
[1771608431786,24.60150252,83.168,83.101,23.14431375]
[1771608431979,24.60150252,83.168,83.1,9.94906667]
[1771608431980,10.8228,83.182,83.133,10.8292]
[1771608433384,10.8234,83.178,83.125,10.8302]
[1771608433582,24.60150252,83.181,83.119,23.14431375]
[1771608433988,24.60150252,83.181,83.132,10.8293]
[1771608434178,24.60150252,83.181,83.119,23.14431375]
[1771608434582,24.60150252,83.181,83.121,23.14431375]
[1771608435187,24.60150252,83.181,83.145,10.8276]
[1771608436485,24.60150252,83.181,83.12,9.94906667]
[1771608436486,24.60150252,83.224,83.138,23.14431375]
[1771608436691,10.80257493,83.268,83.12,9.94906667]
[1771608436692,24.60150252,83.242,83.161,23.14431375]
[1771608437087,24.60150252,83.239,83.161,23.14431375]
[1771608437395,24.60150252,83.238,83.161,23.14431375]
[1771608438684,24.60150252,83.235,83.178,10.8233]
[1771608439092,24.60150252,83.235,83.161,23.14431375]
[1771608439283,24.60150252,83.253,83.177,23.14431375]
[1771608439884,2.09122048,83.283,83.213,10.8187]
[1771608439885,10.8113,83.272,83.213,10.8187]
[1771608440085,24.60150252,83.271,83.213,10.8187]
[1771608440385,24.60150252,83.271,83.191,23.14431375]
[1771608440386,24.60150252,83.271,83.212,10.8189]
[1771608440793,24.60150252,83.271,83.191,23.14431375]
[1771608440982,24.60150252,83.292,83.21,9.94906667]
[1771608441187,24.60150252,83.292,83.211,23.14431375]
[1771608441590,24.60150252,83.292,83.235,10.8159]
[1771608442289,24.60150252,83.292,83.246,10.8144]
[1771608442694,24.60150252,83.292,83.255,10.8133]
[1771608442889,183.00716709,83.303,83.23,9.94906667]
[1771608443091,183.00716709,83.303,83.231,23.14431375]
[1771608444494,183.00716709,83.303,83.262,10.8124]
[1771608444695,183.00716709,83.303,83.253,23.14431375]
[1771608444890,207.60866961,83.303,83.231,23.14431375]
[1771608445287,207.60866961,83.303,83.256,10.8131]
[1771608446398,24.60150252,83.302,83.246,10.8144]
[1771608446696,24.60150252,83.289,83.211,23.14431375]
[1771608446899,183.00716709,83.303,83.211,23.14431375]
[1771608446900,9.94906667,83.3,83.211,23.14431375]
[1771608447096,24.60150252,83.299,83.211,23.14431375]
[1771608447597,24.60150252,83.279,83.22,10.8179]
[1771608447992,24.60150252,83.276,83.211,23.14431375]
[1771608449697,24.60150252,83.276,83.221,10.8177]
[1771608449906,24.60150252,83.276,83.211,23.14431375]
[1771608450499,24.60150252,83.259,83.19,23.14431375]
[1771608451094,24.60150252,83.257,83.201,10.8204]
[1771608451294,24.60150252,83.257,83.171,23.14431375]
[1771608451504,24.60150252,83.239,83.171,23.14431375]
[1771608452106,24.60150252,83.237,83.171,23.14431375]
[1771608452597,24.60150252,83.223,83.165,10.825]
[1771608452998,24.60150252,83.223,83.151,23.14431375]
[1771608453198,24.60150252,83.223,83.172,10.8241]
[1771608453491,24.60150252,83.223,83.151,23.14431375]
[1771608453701,24.60150252,83.223,83.171,10.8242]
[1771608454198,24.60150252,83.219,83.151,23.14431375]
[1771608454397,24.60150252,83.219,83.17,10.8244]
[1771608454600,24.60150252,83.239,83.151,23.14431375]
[1771608454907,24.60150252,83.239,83.171,23.14431375]
[1771608455104,9.94906667,83.25,83.189,23.14431375]
[1771608456806,34.55056919,83.25,83.201,10.8204]
[1771608457002,34.55056919,83.25,83.189,23.14431375]
[1771608457003,24.60150252,83.249,83.189,23.14431375]
[1771608458511,24.60150252,83.249,83.2,10.8205]
[1771608458709,22.72828667,83.267,83.189,23.14431375]
[1771608458904,22.72828667,83.267,83.217,10.8182]
[1771608459909,22.72828667,83.286,83.233,10.8161]
[1771608460304,22.72828667,83.274,83.198,23.01942347]
[1771608460503,22.72828667,83.274,83.175,21.6475]
[1771608460708,185.09757733,83.303,83.109,80.7468469]
[1771608460709,9.94906667,83.18,83.109,80.7468469]
[1771608461011,9.94906667,83.16,83.109,80.7468469]
[1771608461315,9.94906667,83.16,83.026,168.6722]
[1771608461316,168.2878,83.216,83.071,80.7468469]
[1771608461612,7.26679447,83.215,83.102,80.7468469]
[1771608461811,9.94906667,83.18,83.102,80.7468469]
[1771608462012,10.8243,83.171,83.105,80.7468469]
[1771608462414,9.94906667,83.19,83.105,80.7468469]
[1771608462610,10.823,83.182,83.108,78.57858345]
[1771608463005,9.94906667,83.21,83.108,78.57858345]
[1771608463516,9.94906667,83.19,83.112,78.58219806]
[1771608463716,9.94906667,83.21,83.112,78.58219806]
[1771608464516,9.94906667,83.19,83.112,78.58219806]
[1771608464711,10.8221,83.188,83.114,79.16342452]
[1771608465507,10.8207,83.199,83.131,79.16818848]
[1771608466516,10.8221,83.189,83.131,79.16818848]
[1771608466821,7.26679447,83.209,83.131,79.16818848]
[1771608467222,9.91116441,83.19,83.131,79.16818848]
[1771608467518,7.26679447,83.207,83.131,79.16818848]
[1771608467715,10.8238,83.175,83.131,79.16818848]
[1771608469020,10.825,83.166,83.131,79.16818848]
[1771608469217,7.26679447,83.209,83.131,79.16818848]
[1771608469419,7.26679447,83.208,83.131,79.16818848]
[1771608469615,7.26679447,83.207,83.131,79.16818848]
[1771608469819,7.26679447,83.206,83.131,79.16818848]
[1771608470020,7.26679447,83.205,83.131,79.16818848]
[1771608470218,7.26679447,83.204,83.131,79.16818848]
[1771608470423,10.8247,83.168,83.131,79.16818848]
[1771608470825,7.26679447,83.201,83.131,79.16818848]
[1771608471022,10.8221,83.188,83.131,79.16818848]
[1771608471523,10.8234,83.178,83.131,79.16818848]
[1771608472531,7.26679447,83.204,83.131,79.16818848]
[1771608472732,7.26679447,83.203,83.131,79.16818848]
[1771608473026,10.824,83.174,83.131,79.16818848]
[1771608473528,7.26679447,83.225,83.134,10.829]
[1771608473729,9.91116441,83.22,83.135,73.89783574]
[1771608474125,9.91116441,83.24,83.151,73.89783574]
[1771608474729,7.26679447,83.239,83.151,73.89783574]
[1771608474933,7.26679447,83.238,83.151,73.89783574]
[1771608475128,7.26679447,83.239,83.151,73.89783574]
[1771608475429,9.91116441,83.24,83.151,73.89783574]
[1771608475430,7.26679447,83.238,83.151,73.89783574]
[1771608475636,7.26679447,83.237,83.151,73.89783574]
[1771608475829,10.8202,83.203,83.151,73.89783574]
[1771608476232,7.26679447,83.238,83.151,73.89783574]
[1771608476531,7.26679447,83.238,83.1,9.91116441]
[1771608476532,10.8173,83.225,83.171,74.04195377]
[1771608477036,10.8173,83.225,83.173,74.04195377]
[1771608478136,10.8162,83.233,83.173,74.04195377]
[1771608478334,10.82213145,83.309,83.17,9.91116441]
[1771608478335,9.91116441,83.28,83.197,84.86768773]
[1771608478525,7.26679447,83.279,83.197,74.04688773]
[1771608478730,168.1298,83.294,83.197,74.04688773]
[1771608478731,9.91116441,83.26,83.197,74.04688773]
[1771608478926,21.6221,83.274,83.17,9.91116441]
[1771608478927,7.26679447,83.273,83.179,74.05416351]
[1771608479127,10.8147,83.245,83.179,74.05416351]
[1771608479437,10.8147,83.245,83.193,74.05897117]
[1771608479839,21.624,83.266,83.177,74.05897117]
[1771608480034,7.26679447,83.265,83.177,74.05897117]
[1771608480233,7.26679447,83.264,83.177,74.05897117]
[1771608480434,21.624,83.266,83.177,74.05897117]
[1771608480435,7.26679447,83.263,83.177,74.05897117]
[1771608480639,9.91116441,83.25,83.177,74.05897117]
[1771608480833,10.8193,83.21,83.177,74.05897117]
[1771608481032,10.8193,83.21,83.104,168.5129]
[1771608481033,9.91116441,83.23,83.13,9.91116441]
[1771608482439,10.8199,83.205,83.154,10.8264]
[1771608482637,10.8199,83.205,83.13,9.91116441]
[1771608482837,7.26679447,83.229,83.15,9.91116441]
[1771608483035,7.26679447,83.228,83.151,64.96709328]
[1771608483236,21.6295,83.245,83.163,64.97220162]
[1771608483237,10.8188,83.214,83.163,64.97220162]
[1771608483743,7.26679447,83.213,83.163,64.97220162]
[1771608483941,7.26679447,83.229,83.163,64.97220162]
[1771608484142,7.26679447,83.228,83.163,64.97220162]
[1771608484343,7.26679447,83.227,83.163,64.97220162]
[1771608484535,7.26679447,83.226,83.163,64.97220162]
[1771608484743,7.26679447,83.225,83.163,64.97220162]
[1771608485044,7.26679447,83.224,83.163,64.97220162]
[1771608485338,7.26679447,83.223,83.146,10.8275]
[1771608485543,7.26679447,83.222,83.146,10.8275]
[1771608485735,7.26679447,83.221,83.146,75.80021757]
[1771608485938,7.26679447,83.22,83.146,75.80021757]
[1771608486132,7.26679447,83.219,83.146,75.80021757]
[1771608486335,7.26679447,83.218,83.146,75.80021757]
[1771608486643,10.8215,83.193,83.146,75.80021757]
[1771608486844,7.26679447,83.216,83.146,64.97271757]
[1771608487043,10.8211,83.196,83.146,64.97271757]
[1771608487538,36.19,83.224,83.13,9.91116441]
[1771608487539,10.822,83.189,83.149,64.94887832]
[1771608487843,9.91116441,83.21,83.149,64.94887832]
[1771608488035,7.26679447,83.209,83.149,64.94887832]
[1771608488240,7.26679447,83.208,83.149,64.94887832]
[1771608488441,7.26679447,83.207,83.149,64.94887832]
[1771608488645,7.26679447,83.206,83.149,64.94887832]
[1771608488839,7.26679447,83.205,83.149,64.94887832]
[1771608489146,7.26679447,83.204,83.149,64.94887832]
[1771608489336,9.91116441,83.21,83.149,64.94887832]
[1771608489337,10.8217,83.191,83.149,64.94887832]
[1771608489532,7.29973113,83.209,83.149,64.94887832]
[1771608489740,9.91116441,83.23,83.151,65.06597523]
[1771608489741,7.30065532,83.229,83.151,65.06597523]
[1771608489941,7.30065532,83.228,83.168,65.06597523]
[1771608490137,9.91116441,83.23,83.13,9.91116441]
[1771608490138,7.30065532,83.227,83.13,9.91116441]
[1771608490341,21.6354,83.222,83.13,9.91116441]
[1771608490537,10.8209,83.197,83.13,9.91116441]
[1771608490844,10.8209,83.197,83.15,10.8269]
[1771608491338,10.8209,83.197,83.13,9.91116441]
[1771608491339,10.82,83.204,83.157,10.8261]
[1771608491646,7.31346538,83.203,83.13,9.91116441]
[1771608491840,7.31346538,83.202,83.13,9.91116441]
[1771608492040,10.82213145,83.241,83.11,9.91116441]
[1771608492041,7.31346538,83.201,83.142,10.828]
[1771608492235,7.31346538,83.2,83.142,10.828]
[1771608492445,7.31346538,83.199,83.136,55.73897593]
[1771608492746,7.31346538,83.198,83.136,55.73897593]
[1771608493044,7.31346538,83.197,83.11,9.91116441]
[1771608493235,9.91116441,83.19,83.09,9.91116441]
[1771608493439,9.91116441,83.17,83.09,9.91116441]
[1771608493739,9.91116441,83.17,83.07,9.91116441]
[1771608493740,7.31346538,83.169,83.07,9.91116441]
[1771608494046,10.82213145,83.214,83.11,9.91116441]
[1771608494246,16.74337738,83.209,83.11,9.91116441]
[1771608494443,10.8219,83.19,83.142,10.828]
[1771608494742,7.31332064,83.189,83.142,10.828]
[1771608495043,10.82213145,83.228,83.13,9.91116441]
[1771608495044,7.31332064,83.188,83.146,10.8275]
[1771608495243,9.43005674,83.226,83.146,46.47532296]
[1771608495445,16.75129315,83.225,83.146,46.47532296]
[1771608495643,16.75129315,83.224,83.146,46.47532296]
[1771608495843,16.75129315,83.224,83.11,9.91116441]
[1771608495844,10.8187,83.214,83.165,46.48118394]
[1771608496145,7.32123641,83.213,83.165,46.48118394]
[1771608496334,7.32123641,83.212,83.165,46.48118394]
[1771608496540,7.32123641,83.211,83.165,46.48118394]
[1771608496744,7.32123641,83.21,83.165,46.48118394]
[1771608496948,7.32123641,83.209,83.165,57.30618394]
[1771608497142,7.32123641,83.208,83.165,57.30618394]
[1771608497342,7.32123641,83.207,83.165,57.30618394]
[1771608497637,7.32123641,83.206,83.165,57.30618394]
[1771608497842,7.32123641,83.205,83.165,57.30618394]
[1771608498137,10.8203,83.202,83.154,10.8264]
[1771608498344,7.32123641,83.201,83.146,46.5985505]
[1771608498534,7.32123641,83.2,83.146,46.5985505]
[1771608498741,7.32123641,83.199,83.146,46.5985505]
[1771608498937,9.43005674,83.225,83.146,46.5985505]
[1771608498938,7.32123641,83.198,83.162,10.8254]
[1771608499142,10.8189,83.213,83.162,57.40773731]
[1771608499439,7.32296145,83.212,83.169,10.8245]
[1771608499640,9.43005674,83.242,83.169,46.58811377]
[1771608499843,16.75452856,83.241,83.169,46.58811377]
[1771608500041,10.818,83.22,83.169,46.58811377]
[1771608500238,7.32447182,83.219,83.169,46.58811377]
[1771608500443,10.82213145,83.249,83.169,46.58811377]
[1771608500444,7.32447182,83.218,83.169,46.58811377]
[1771608500644,7.32447182,83.217,83.17,10.8244]
[1771608500843,7.32447182,83.216,83.17,10.8244]
[1771608501045,7.32447182,83.215,83.17,10.8244]
[1771608501343,7.32447182,83.214,83.178,46.60026967]
[1771608501547,9.43005674,83.249,83.178,46.60026967]
[1771608501743,7.33457552,83.248,83.178,46.60026967]
[1771608501947,7.33457552,83.247,83.178,46.60026967]
[1771608502142,7.33457552,83.247,83.137,21.6572]
[1771608502143,10.8148,83.244,83.181,46.60593148]
[1771608502344,9.91116441,83.27,83.181,46.60593148]
[1771608502345,7.33457552,83.243,83.181,46.60593148]
[1771608502550,7.33457552,83.242,83.181,46.60593148]
[1771608502749,7.33457552,83.241,83.199,57.43672564]
[1771608502949,7.33457552,83.24,83.199,57.43672564]
[1771608503150,7.33457552,83.239,83.199,57.43672564]
[1771608503348,9.43005674,83.265,83.199,57.43672564]
[1771608503549,7.32844895,83.264,83.199,57.43672564]
[1771608503748,7.32844895,83.263,83.199,57.43672564]
[1771608503944,10.8136,83.253,83.199,57.43672564]
[1771608504147,7.32844895,83.252,83.199,57.43672564]
[1771608504348,7.32844895,83.251,83.199,57.43672564]
[1771608504653,10.8144,83.247,83.199,46.61612564]
[1771608504954,7.32844895,83.246,83.199,46.61612564]
[1771608505152,7.32844895,83.245,83.18,46.61727923]
[1771608505356,7.32844895,83.244,83.18,46.61727923]
[1771608505657,7.32844895,83.243,83.18,46.61727923]
[1771608505955,10.8162,83.234,83.184,57.44516394]
[1771608506156,7.32844895,83.233,83.184,57.44516394]
[1771608506363,10.8166,83.23,83.184,57.44516394]
[1771608506550,7.32844895,83.229,83.184,57.44516394]
[1771608506750,10.8166,83.23,83.184,57.44516394]
[1771608506751,7.32844895,83.228,83.184,57.44516394]
[1771608506952,10.8166,83.23,83.184,57.44516394]
[1771608506953,7.32689369,83.227,83.184,57.44516394]
[1771608507157,10.8155,83.239,83.191,10.8216]
[1771608507352,7.32609044,83.238,83.191,46.63193265]
[1771608507552,7.32609044,83.237,83.191,46.63193265]
[1771608507754,7.32609044,83.236,83.191,46.63193265]
[1771608508049,10.8161,83.234,83.191,46.63193265]
[1771608508359,7.32609044,83.233,83.191,46.63193265]
[1771608508554,7.32609044,83.232,83.191,46.63193265]
[1771608508757,7.32609044,83.231,83.191,46.63193265]
[1771608508955,7.32609044,83.23,83.191,46.63193265]
[1771608509260,9.91116441,83.25,83.191,46.63193265]
[1771608509261,7.32609044,83.229,83.191,46.63193265]
[1771608509462,7.32609044,83.228,83.191,46.63193265]
[1771608509658,7.32609044,83.227,83.191,46.63193265]
[1771608509859,7.32609044,83.226,83.191,46.63193265]
[1771608510160,7.32609044,83.225,83.191,46.63193265]
[1771608510360,7.32609044,83.224,83.191,46.63193265]
[1771608510561,7.32609044,83.223,83.191,46.63193265]
[1771608510764,9.91116441,83.25,83.191,46.63193265]
[1771608510765,7.32609044,83.222,83.191,46.63193265]